bitfinex/quotes_SOLUSD_20250611
["timestamp","ask_amount","ask_price","bid_price","bid_amount"]
[1749663865294,0.42648471,165.36,165.26,18.64964886]
[1749663865597,23.41039982,165.3,165.26,18.64964886]
[1749663866107,23.41039982,165.29,165.26,18.64964886]
[1749663866292,23.41039982,165.29,165.25,2.49693469]
[1749663866491,3.44547375,165.36,165.25,26.67693469]
[1749663866786,23.41039982,165.29,165.25,2.49693469]
[1749663867092,23.41039982,165.3,165.25,50.08733451]
[1749663868014,3.44547375,165.36,165.25,26.67693469]
[1749663868177,23.41039982,165.3,165.25,50.08733451]
[1749663868376,3.44547375,165.36,165.25,26.67693469]
[1749663868576,23.41039982,165.3,165.25,26.67693469]
[1749663868990,23.41039982,165.3,165.25,50.08733451]
[1749663869673,3.44547375,165.36,165.25,50.08733451]
[1749663869877,23.41039982,165.31,165.26,23.41039982]
[1749663870374,3.44547375,165.36,165.26,23.41039982]
[1749663870601,23.41039982,165.31,165.25,26.67693469]
[1749663870793,29.44547375,165.36,165.28,23.41039982]
[1749663871096,23.41039982,165.34,165.29,23.41039982]
[1749663872394,26.28432314,165.37,165.25,2.49693469]
[1749663872615,0.28432314,165.36,165.27,23.41039982]
[1749663872903,26.28432314,165.37,165.26,18.64964886]
[1749663872904,23.41039982,165.32,165.26,18.64964886]
[1749663873109,23.41039982,165.32,165.27,23.41039982]
[1749663874023,0.28432314,165.36,165.29,23.41039982]
[1749663874314,0.28432314,165.36,165.28,23.41039982]
[1749663874514,23.41039982,165.34,165.26,18.64964886]
[1749663874684,23.41039982,165.34,165.28,23.41039982]
[1749663874887,23.41039982,165.34,165.29,23.41039982]
[1749663875107,0.42648471,165.36,165.26,18.64964886]
[1749663875279,23.41039982,165.32,165.27,23.41039982]
[1749663875687,23.41039982,165.3,165.26,23.41039982]
[1749663875911,0.28432314,165.34,165.27,23.41039982]
[1749663876116,23.41039982,165.3,165.25,2.49693469]
[1749663876292,23.41039982,165.28,165.25,2.49693469]
[1749663876624,23.41039982,165.26,165.25,2.49693469]
[1749663876785,6.03414958,165.35,165.25,2.49693469]
[1749663876988,23.41039982,165.29,165.25,2.49693469]
[1749663877192,23.41039982,165.3,165.25,25.90733451]
[1749663878722,23.41039982,165.29,165.25,2.49693469]
[1749663878886,26.0,165.33,165.25,2.49693469]
[1749663879089,26.0,165.33,165.26,23.41039982]
[1749663879290,23.41039982,165.31,165.26,23.41039982]
[1749663879528,23.41039982,165.31,165.25,2.49693469]
[1749663879529,26.0,165.33,165.25,2.49693469]
[1749663879828,23.41039982,165.31,165.25,25.90733451]
[1749663880215,23.41039982,165.31,165.26,23.41039982]
[1749663881101,26.0,165.33,165.25,2.49693469]
[1749663881428,23.41039982,165.3,165.25,25.90733451]
[1749663881911,26.0,165.33,165.25,25.90733451]
[1749663882104,23.41039982,165.3,165.25,25.90733451]
[1749663882306,23.41039982,165.29,165.25,2.49693469]
[1749663883420,26.0,165.33,165.25,25.90733451]
[1749663883589,6.66,165.34,165.26,23.41039982]
[1749663883916,6.66,165.34,165.25,2.49693469]
[1749663883917,23.41039982,165.3,165.25,25.90733451]
[1749663885992,23.41039982,165.31,165.25,25.90733451]
[1749663886310,6.66,165.34,165.25,25.90733451]
[1749663886311,23.41039982,165.28,165.25,2.49693469]
[1749663886495,23.41039982,165.27,165.25,2.49693469]
[1749663886991,23.41039982,165.29,165.25,2.49693469]
[1749663887315,23.41039982,165.31,165.26,18.64964886]
[1749663887700,4.45173461,165.3,165.26,18.64964886]
[1749663887897,4.45162365,165.29,165.26,42.06004868]
[1749663888213,23.41039982,165.31,165.26,42.06004868]
[1749663888522,23.41039982,165.3,165.26,18.64964886]
[1749663888708,23.41039982,165.29,165.25,2.49693469]
[1749663888909,23.41039982,165.28,165.25,2.49693469]
[1749663889704,23.41039982,165.27,165.25,2.49693469]
[1749663892934,6.04899791,165.32,165.25,2.49693469]
[1749663893218,23.41039982,165.27,165.25,2.49693469]
[1749663893421,6.04899791,165.32,165.25,2.49693469]
[1749663893624,23.41039982,165.26,165.25,2.49693469]
[1749663895123,29.46147085,165.26,165.25,2.49693469]
[1749663895297,20.40037252,165.26,165.25,2.49693469]
[1749663897302,29.77681738,165.26,165.25,2.49693469]
[1749663897697,23.72574635,165.26,165.25,2.49693469]
[1749663898311,29.77681738,165.26,165.25,2.49693469]
[1749663898723,23.72574635,165.26,165.25,2.49693469]
[1749663899014,23.72574635,165.26,165.25,4.49483931]
[1749663899208,29.77681738,165.26,165.25,2.49693469]
[1749663899524,23.72574635,165.26,165.25,4.49483931]
[1749663899702,23.72574635,165.26,165.25,2.49693469]
[1749663900105,23.72574635,165.26,165.25,4.49483931]
[1749663900408,23.72574635,165.26,165.25,2.49693469]
[1749663900621,23.72574635,165.26,165.25,4.49483931]
[1749663900812,23.72574635,165.26,165.25,4.49485197]
[1749663900813,29.77681738,165.26,165.25,4.49485197]
[1749663901012,29.77681738,165.26,165.25,2.49693469]
[1749663901332,55.91897895,165.26,165.25,2.49693469]
[1749663901650,32.47755574,165.26,165.25,2.49693469]
[1749663901932,49.86790792,165.26,165.25,2.49693469]
[1749663902312,49.72574635,165.26,165.25,2.49693469]
[1749663902717,26.0,165.26,165.25,2.49693469]
[1749663902917,49.44142321,165.26,165.25,2.49693469]
[1749663904030,49.44142321,165.26,165.25,1.99693469]
[1749663904534,23.44142321,165.26,165.25,1.99693469]
[1749663907044,0.28432314,165.28,165.25,1.99693469]
[1749663907045,6.05078293,165.27,165.25,1.99693469]
[1749663907217,23.44142321,165.26,165.25,1.99693469]
[1749663909228,23.44142321,165.27,165.25,1.99693469]
[1749663910744,23.44142321,165.26,165.25,1.99693469]
[1749663911405,0.28432314,165.27,165.25,1.99693469]
[1749663911648,23.44142321,165.26,165.25,1.99693469]
[1749663912154,32.0499973,165.29,165.25,1.99693469]
[1749663912312,23.44142321,165.27,165.25,1.99693469]
[1749663912633,23.44142321,165.26,165.25,1.99693469]
[1749663913018,6.04997277,165.29,165.25,1.99693469]
[1749663913019,23.44142321,165.27,165.25,1.99693469]
[1749663914138,23.44142321,165.26,165.25,1.99693469]
[1749663914320,6.04997277,165.29,165.25,1.99693469]
[1749663914516,6.05042053,165.28,165.25,1.99693469]
[1749663914720,23.44142321,165.27,165.25,1.99693469]
[1749663915521,6.05042053,165.28,165.25,1.99693469]
[1749663915742,23.44142321,165.27,165.25,1.99693469]
[1749663916236,6.05042053,165.28,165.25,1.99693469]
[1749663916538,29.49184374,165.28,165.25,1.99693469]
[1749663916942,23.44142321,165.27,165.25,1.99693469]
[1749663917335,14.05558453,165.27,165.25,1.99693469]
[1749663917542,6.05009788,165.29,165.25,1.99693469]
[1749663917717,14.05558453,165.26,165.25,1.99693469]
[1749663918635,20.53314027,165.26,165.25,1.99693469]
[1749663918857,46.53314027,165.26,165.25,1.99693469]
[1749663920931,54.70061838,165.26,165.25,1.99693469]
[1749663921551,54.55845681,165.26,165.25,1.99693469]
[1749663921759,28.27413367,165.26,165.25,1.99693469]
[1749663922136,14.05558453,165.26,165.25,1.99693469]
[1749663923234,20.10665556,165.26,165.25,1.99693469]
[1749663924064,14.05558453,165.26,165.25,1.99693469]
[1749663924356,20.10665556,165.26,165.25,1.99693469]
[1749663924728,46.3909787,165.26,165.25,1.99693469]
[1749663926752,0.42648471,165.22,165.11,8.0604]
[1749663926970,0.28432314,165.19,165.11,8.0604]
[1749663927171,0.42648471,165.19,165.11,22.11598453]
[1749663928046,14.05558453,165.12,165.08,0.5883458]
[1749663928247,26.0,165.05,165.0,3.49693469]
[1749663928435,14.05558453,165.01,165.0,2.99693469]
[1749663928631,6.06023877,165.01,165.0,2.99693469]
[1749663928943,32.05994852,165.02,165.0,2.99693469]
[1749663929133,14.48206924,165.01,165.0,2.99693469]
[1749663929333,32.05913717,165.04,165.0,2.99693469]
[1749663929534,23.50367335,165.01,165.0,2.99693469]
[1749663929745,23.78799649,165.01,165.0,2.99693469]
[1749663929951,23.93015806,165.01,165.0,2.99693469]
[1749663930256,23.93015806,165.01,164.79,238.2]
[1749663930257,6.0933,165.0,164.79,238.2]
[1749663930469,23.50367335,164.9,164.77,18.190086]
[1749663930636,26.0,164.86,164.77,18.190086]
[1749663930832,23.50367335,164.8,164.77,18.190086]
[1749663931068,23.50367335,164.79,164.72,26.0]
[1749663931255,26.0,164.8,164.65,4.7728601]
[1749663931563,23.50367335,164.76,164.62,34.22]
[1749663931737,23.50367335,164.76,164.57,10.0]
[1749663931938,26.0,164.77,164.56,10.0]
[1749663931939,23.50367335,164.7,164.56,10.0]
[1749663932138,29.95960071,164.8,164.64,23.50367335]
[1749663932348,29.95960071,164.8,164.63,23.50367335]
[1749663932349,23.50367335,164.7,164.63,23.50367335]
[1749663932548,23.50367335,164.7,164.59,24.22]
[1749663932549,2.99546293,164.76,164.69,23.50367335]
[1749663932751,3.04794573,164.78,164.66,24.22]
[1749663932940,6.06354596,164.92,164.73,26.0]
[1749663933147,6.06354596,164.92,164.7,23.50367335]
[1749663933148,6.56,164.91,164.68,10.0]
[1749663933466,23.50367335,164.77,164.71,23.50367335]
[1749663933637,26.0,164.87,164.74,23.50367335]
[1749663933842,23.50367335,164.9,164.71,24.22]
[1749663934182,3.01123811,164.91,164.81,23.50367335]
[1749663934341,23.50367335,164.84,164.77,24.22]
[1749663934538,23.50367335,164.82,164.76,23.50367335]
[1749663934763,23.50367335,164.81,164.75,23.50367335]
[1749663934966,23.50367335,164.83,164.78,23.50367335]
[1749663935171,23.50367335,164.83,164.73,50.22]
[1749663935346,26.0,164.87,164.77,36.74286396]
[1749663935546,36.74286396,164.83,164.78,36.74286396]
[1749663935746,26.0,164.87,164.73,50.22]
[1749663935747,36.74286396,164.84,164.73,50.22]
[1749663936057,36.74286396,164.81,164.75,36.74286396]
[1749663936240,36.74286396,164.79,164.74,36.74286396]
[1749663936566,36.74286396,164.79,164.73,36.74286396]
[1749663936749,26.0,164.85,164.73,36.74286396]
[1749663937070,26.0,164.85,164.71,24.24]
[1749663937071,36.74286396,164.79,164.71,24.24]
[1749663937274,36.74286396,164.78,164.7,32.6451]
[1749663937439,26.0,164.85,164.74,36.74286396]
[1749663937863,36.74286396,164.79,164.74,36.74286396]
[1749663938062,26.0,164.85,164.71,24.24]
[1749663938243,36.74286396,164.79,164.73,36.74286396]
[1749663938445,36.74286396,164.79,164.7,6.6451]
[1749663938642,36.74286396,164.79,164.74,36.74286396]
[1749663938846,36.74286396,164.79,164.71,24.24]
[1749663939060,36.74286396,164.79,164.74,36.74286396]
[1749663939279,36.74286396,164.77,164.7,6.6451]
[1749663939452,32.56,164.85,164.73,36.74286396]
[1749663939655,36.74286396,164.78,164.73,36.74286396]
[1749663939857,36.74286396,164.79,164.74,36.74286396]
[1749663940467,38.62622328,164.85,164.7,6.1451]
[1749663940468,36.74286396,164.81,164.76,36.74286396]
[1749663940668,36.74286396,164.8,164.75,36.74286396]
[1749663940875,32.56,164.85,164.75,36.74286396]
[1749663941054,6.06428138,164.9,164.72,18.64964886]
[1749663941267,36.74286396,164.85,164.72,18.64964886]
[1749663941449,36.74286396,164.84,164.79,36.74286396]
[1749663941649,36.74286396,164.82,164.72,18.64964886]
[1749663941955,36.74286396,164.81,164.76,36.74286396]
[1749663942253,36.74286396,164.82,164.73,24.24]
[1749663942453,36.74286396,164.83,164.78,36.74286396]
[1749663942674,36.74286396,164.85,164.8,36.74286396]
[1749663942860,36.74286396,164.84,164.73,42.88964886]
[1749663943180,36.74286396,164.84,164.73,24.24]
[1749663943380,36.74286396,164.8,164.75,36.74286396]
[1749663944052,36.74286396,164.81,164.76,36.74286396]
[1749663944464,36.74286396,164.81,164.73,24.26]
[1749663944778,36.74286396,164.82,164.77,36.74286396]
[1749663945577,32.06575885,164.86,164.77,36.74286396]
[1749663945757,36.74286396,164.82,164.77,36.74286396]
[1749663946076,9.55134209,164.91,164.79,36.74286396]
[1749663946256,36.74286396,164.86,164.81,36.74286396]
[1749663946448,36.74286396,164.86,164.74,42.90964886]
[1749663946449,36.74286396,164.85,164.8,36.74286396]
[1749663947191,36.74286396,164.84,164.75,18.64964886]
[1749663947374,36.74286396,164.84,164.79,36.74286396]
[1749663948078,36.74286396,164.83,164.79,36.74286396]
[1749663948277,36.74286396,164.84,164.79,36.74286396]
[1749663948486,36.74286396,164.84,164.8,36.74286396]
[1749663948866,36.74286396,164.85,164.8,36.74286396]
[1749663949299,36.74286396,164.84,164.78,24.26]
[1749663949784,32.06513806,164.88,164.79,36.74286396]
[1749663949975,36.74286396,164.84,164.79,36.74286396]
[1749663950379,36.74286396,164.84,164.78,24.26]
[1749663950579,36.74286396,164.84,164.79,36.74286396]
[1749663950779,36.74286396,164.8,164.7,6.1451]
[1749663950992,36.74286396,164.76,164.71,18.64964886]
[1749663951165,0.42648471,164.83,164.71,42.90964886]
[1749663951368,36.74286396,164.78,164.73,36.74286396]
[1749663951665,36.74286396,164.78,164.74,36.74286396]
[1749663951869,0.42648471,164.83,164.74,36.74286396]
[1749663952090,0.42648471,164.83,164.71,42.90964886]
[1749663952091,36.74286396,164.79,164.71,42.90964886]
[1749663952276,36.74286396,164.79,164.74,36.74286396]
[1749663952897,0.42648471,164.83,164.7,6.1451]
[1749663953097,0.42648471,164.83,164.71,24.26]
[1749663953098,36.74286396,164.79,164.71,24.26]
[1749663953399,26.0,164.85,164.71,24.26]
[1749663953400,0.42648471,164.84,164.76,36.74286396]
[1749663953569,36.74286396,164.82,164.77,36.74286396]
[1749663953979,36.74286396,164.82,164.75,24.26]
[1749663954180,36.74286396,164.81,164.76,36.74286396]
[1749663954389,36.74286396,164.81,164.77,36.74286396]
[1749663955988,36.74286396,164.85,164.8,36.74286396]
[1749663956192,36.74286396,164.85,164.76,18.64964886]
[1749663956406,36.74286396,164.85,164.81,36.74286396]
[1749663956692,36.74286396,164.85,164.79,24.26]
[1749663956995,36.74286396,164.85,164.8,36.74286396]
[1749663957192,26.0,164.88,164.8,36.74286396]
[1749663957391,36.74286396,164.84,164.8,36.74286396]
[1749663957703,36.74286396,164.84,164.79,61.00286396]
[1749663957910,36.74286396,164.84,164.8,36.74286396]
[1749663958986,6.20651721,164.9,164.79,24.26]
[1749663959306,23.53536744,164.89,164.84,23.53536744]
[1749663959608,23.53536744,164.85,164.8,23.53536744]
[1749663959806,23.53536744,164.84,164.8,24.26]
[1749663960184,23.53536744,164.81,164.71,18.64964886]
[1749663960404,0.28432314,164.86,164.77,23.53536744]
[1749663960585,23.53536744,164.82,164.76,24.26]
[1749663961008,23.53536744,164.82,164.78,23.53536744]
[1749663961212,23.53536744,164.83,164.79,23.53536744]
[1749663961382,26.0,164.87,164.76,24.26]
[1749663961588,23.53536744,164.87,164.82,23.53536744]
[1749663961804,23.53536744,164.86,164.82,23.53536744]
[1749663962008,23.53536744,164.87,164.82,23.53536744]
[1749663962287,23.53536744,164.88,164.8,24.26]
[1749663962496,15.61532168,164.91,164.85,23.53536744]
[1749663962497,23.53536744,164.89,164.85,23.53536744]
[1749663963287,23.53536744,164.9,164.85,23.53536744]
[1749663963487,33.08670953,164.91,164.86,23.53536744]
[1749663963909,2.99134209,164.91,164.84,24.26]
[1749663964090,23.53536744,164.91,164.86,23.53536744]
[1749663964489,23.53536744,164.91,164.87,23.53536744]
[1749663964695,23.53536744,164.91,164.86,23.53536744]
[1749663964995,23.53536744,164.91,164.84,24.26]
[1749663964996,23.53536744,164.87,164.73,87.3]
[1749663965198,0.28432314,164.9,164.81,23.53536744]
[1749663965398,23.53536744,164.87,164.82,23.53536744]
[1749663965804,0.28432314,164.9,164.8,24.26]
[1749663965805,23.53536744,164.84,164.8,24.26]
[1749663966011,0.28432314,164.88,164.8,24.26]
[1749663966212,0.28432314,164.89,164.81,23.53536744]
[1749663966402,23.53536744,164.87,164.82,23.53536744]
[1749663967700,23.53536744,164.88,164.83,23.53536744]
[1749663967891,23.53536744,164.88,164.8,24.26]
[1749663968098,23.53536744,164.88,164.83,23.53536744]
[1749663968723,23.53536744,164.88,164.8,24.26]
[1749663969106,23.53536744,164.88,164.83,23.53536744]
[1749663969723,3.03359083,164.91,164.84,23.53536744]
[1749663969724,23.53536744,164.89,164.84,23.53536744]
[1749663969927,3.03359083,164.91,164.84,23.53536744]
[1749663970102,26.0,164.92,164.85,23.53536744]
[1749663970304,23.53536744,164.91,164.86,23.53536744]
[1749663970695,23.53536744,164.89,164.84,23.53536744]
[1749663970892,23.53536744,164.87,164.82,6.4792]
[1749663971411,32.34823678,164.91,164.82,6.4792]
[1749663971612,23.53536744,164.88,164.84,23.53536744]
[1749663971820,23.53536744,164.89,164.84,23.53536744]
[1749663972016,32.34823678,164.91,164.83,23.53536744]
[1749663972324,23.53536744,164.88,164.83,23.53536744]
[1749663974311,6.06362931,164.92,164.83,23.53536744]
[1749663974514,6.06362931,164.92,164.85,23.53536744]
[1749663974515,23.53536744,164.9,164.85,23.53536744]
[1749663974838,23.53536744,164.9,164.82,6.4792]
[1749663975005,23.53536744,164.89,164.82,6.4792]
[1749663975208,23.53536744,164.89,164.84,23.53536744]
[1749663975606,6.06362931,164.92,164.84,23.53536744]
[1749663975807,23.53536744,164.9,164.85,23.53536744]
[1749663976108,6.0633082,164.93,164.85,23.53536744]
[1749663976309,23.53536744,164.9,164.85,23.53536744]
[1749663976948,9.14963644,164.93,164.85,23.53536744]
[1749663977121,9.14963644,164.93,164.87,23.53536744]
[1749663977122,23.53536744,164.92,164.87,23.53536744]
[1749663977326,6.0621507,164.96,164.85,24.26]
[1749663977553,9.11877647,164.96,164.89,23.53536744]
[1749663977852,23.53536744,164.93,164.88,23.53536744]
[1749663978031,23.53536744,164.94,164.89,23.53536744]
[1749663978230,23.53536744,164.95,164.86,18.64964886]
[1749663978544,23.53536744,164.95,164.9,23.53536744]
[1749663978946,23.53536744,164.95,164.86,18.64964886]
[1749663979151,23.53536744,164.95,164.9,23.53536744]
[1749663979526,3.05662577,164.96,164.91,23.53536744]
[1749663979841,3.05662577,164.96,164.86,18.64964886]
[1749663979842,6.58,164.98,164.93,23.53536744]
[1749663980150,12.64134575,164.98,164.9,23.53536744]
[1749663980450,23.53536744,164.93,164.89,23.53536744]
[1749663980635,23.53536744,164.92,164.87,47.79536744]
[1749663981255,23.53536744,164.93,164.88,23.53536744]
[1749663982562,6.06244528,164.95,164.88,23.53536744]
[1749663982936,23.53536744,164.93,164.88,23.53536744]
[1749663983435,23.53536744,164.92,164.87,23.53536744]
[1749663983635,23.53536744,164.91,164.86,47.77536744]
[1749663984032,23.53536744,164.9,164.82,6.4792]
[1749663984356,23.53536744,164.88,164.83,23.53536744]
[1749663984551,23.53536744,164.88,164.84,23.53536744]
[1749663985055,23.53536744,164.89,164.84,23.53536744]
[1749663985240,23.53536744,164.88,164.83,47.77536744]
[1749663985569,6.06354596,164.92,164.84,23.53536744]
[1749663985770,23.53536744,164.88,164.84,23.53536744]
[1749663986335,6.06354596,164.92,164.84,23.53536744]
[1749663986336,23.53536744,164.89,164.84,23.53536744]
[1749663986840,23.53536744,164.91,164.86,23.53536744]
[1749663987048,26.0,164.93,164.83,24.24]
[1749663987049,26.0,164.93,164.87,23.53536744]
[1749663987236,23.53536744,164.9,164.85,23.53536744]
[1749663987437,23.53536744,164.89,164.85,23.53536744]
[1749663987635,23.53536744,164.89,164.84,23.53536744]
[1749663987833,32.06322576,164.93,164.84,23.53536744]
[1749663988035,23.53536744,164.89,164.83,24.24]
[1749663988436,6.06322576,164.93,164.85,23.53536744]
[1749663988731,32.0625105,164.95,164.86,23.53536744]
[1749663988955,23.53536744,164.92,164.87,23.53536744]
[1749663989157,23.53536744,164.91,164.83,24.24]
[1749663989364,23.53536744,164.9,164.84,18.64964886]
[1749663989559,23.53536744,164.9,164.86,23.53536744]
[1749663990155,23.53536744,164.91,164.86,23.53536744]
[1749663990350,23.53536744,164.91,164.87,23.53536744]
[1749663990539,23.53536744,164.92,164.87,23.53536744]
[1749663991168,0.5,164.9,164.87,23.53536744]
[1749663991743,0.5,164.9,164.89,23.53536744]
[1749663992887,23.53536744,164.96,164.88,18.64964886]
[1749663993194,15.63968755,164.98,164.88,18.64964886]
[1749663993486,23.53536744,164.93,164.89,23.53536744]
[1749663993670,15.63968755,164.98,164.9,23.53536744]
[1749663994392,23.53536744,164.95,164.91,23.53536744]
[1749663996078,15.63967979,164.98,164.91,23.53536744]
[1749663996285,23.53536744,164.95,164.91,23.53536744]
[1749663996889,15.63967979,164.98,164.91,23.53536744]
[1749663997081,23.53536744,164.96,164.91,23.53536744]
[1749663997772,15.63973545,164.98,164.91,23.53536744]
[1749663998486,23.53536744,164.94,164.89,23.53536744]
[1749663998687,23.53536744,164.92,164.87,47.77536744]
[1749663998866,23.53536744,164.92,164.87,23.53536744]
[1749663999070,6.06279517,164.95,164.87,23.53536744]
[1749663999267,23.53536744,164.92,164.87,23.53536744]
[1749664000290,23.53536744,164.91,164.86,23.53536744]
[1749664001470,6.06207565,164.96,164.88,23.53536744]
[1749664001670,6.06207565,164.96,164.89,23.53536744]
[1749664002074,23.53536744,164.93,164.89,23.53536744]
[1749664002277,23.53536744,164.92,164.88,23.53536744]
[1749664002672,6.06207565,164.96,164.88,23.53536744]
[1749664002886,23.53536744,164.93,164.88,23.53536744]
[1749664003089,23.53536744,164.92,164.88,23.53536744]
[1749664003487,23.53536744,164.93,164.88,23.53536744]
[1749664004827,23.53536744,164.92,164.83,18.64964886]
[1749664005115,23.53536744,164.92,164.88,23.53536744]
[1749664005275,23.53536744,164.92,164.87,23.53536744]
[1749664006501,23.53536744,164.92,164.88,23.53536744]
[1749664007111,6.06257559,164.95,164.88,23.53536744]
[1749664007296,23.53536744,164.92,164.88,23.53536744]
[1749664008098,6.06257559,164.95,164.86,24.24]
[1749664008099,23.53536744,164.89,164.86,24.24]
[1749664008299,23.53536744,164.88,164.86,24.24]
[1749664009009,23.53536744,164.88,164.84,23.53536744]
[1749664009010,23.53536744,164.88,164.87,24.24]
[1749664009599,23.53536744,164.88,164.82,6.4792]
[1749664009907,23.53536744,164.86,164.83,42.88964886]
[1749664010114,6.06329935,164.93,164.84,24.24]
[1749664010297,23.53536744,164.86,164.84,24.24]
[1749664011008,23.53536744,164.86,164.83,18.64964886]
[1749664011185,23.53536744,164.86,164.84,24.24]
[1749664011387,23.53536744,164.87,164.84,24.24]
[1749664012807,23.53536744,164.87,164.85,24.24]
[1749664013310,6.06295644,164.94,164.85,24.24]
[1749664013496,23.53536744,164.87,164.83,18.64964886]
[1749664013695,23.53536744,164.87,164.84,24.24]
[1749664014296,23.53536744,164.85,164.84,24.24]
[1749664014700,23.53536744,164.9,164.84,24.24]
[1749664015623,23.53536744,164.9,164.83,18.64964886]
[1749664016133,23.53536744,164.9,164.84,24.24]
[1749664017121,23.53536744,164.86,164.84,24.24]
[1749664017330,14.12140727,164.86,164.84,24.24]
[1749664017923,14.12140727,164.85,164.84,24.24]
[1749664018148,14.12140727,164.85,164.82,6.4792]
[1749664018442,14.12140727,164.83,164.82,6.4792]
[1749664019131,14.12140727,164.88,164.82,6.4792]
[1749664019638,20.18648392,164.88,164.8,25.7926]
[1749664020138,20.18648392,164.88,164.8,1.5526]
[1749664020303,14.12140727,164.81,164.78,6.5348]
[1749664020502,14.12140727,164.79,164.78,6.5348]
[1749664021408,6.06474515,164.89,164.78,6.5348]
[1749664021612,14.12140727,164.79,164.78,25.18444886]
[1749664022229,14.12140727,164.88,164.78,25.18444886]
[1749664022469,14.12140727,164.8,164.78,25.18444886]
[1749664022672,14.12140727,164.79,164.78,25.18444886]
[1749664022958,14.12140727,164.79,164.74,1.5076]
[1749664023253,14.12140727,164.8,164.73,6.2685]
[1749664023254,23.57106947,164.75,164.73,6.2685]
[1749664023551,23.57106947,164.74,164.7,1.6383]
[1749664023748,23.57106947,164.71,164.7,1.6383]
[1749664023926,23.57106947,164.71,164.7,25.8983]
[1749664024128,23.57106947,164.8,164.69,6.2685]
[1749664024351,23.57106947,164.71,164.7,24.26]
[1749664024539,23.57106947,164.71,164.7,42.90964886]
[1749664024738,23.57106947,164.71,164.7,18.64964886]
[1749664024938,23.57106947,164.71,164.7,42.90964886]
[1749664025257,23.57106947,164.73,164.71,18.64964886]
[1749664025447,23.57106947,164.72,164.71,18.64964886]
[1749664025857,28.37899937,164.8,164.71,18.64964886]
[1749664026151,23.57106947,164.8,164.71,18.64964886]
[1749664026352,23.57106947,164.73,164.71,18.64964886]
[1749664027061,23.57106947,164.73,164.7,18.64964886]
[1749664027353,23.57106947,164.73,164.71,24.26]
[1749664027534,23.57106947,164.8,164.72,18.64964886]
[1749664027733,23.57106947,164.74,164.72,18.64964886]
[1749664028143,23.57106947,164.76,164.72,18.64964886]
[1749664028852,23.57106947,164.76,164.71,47.83106947]
[1749664028853,1.5559,164.84,164.74,18.64964886]
[1749664029063,23.57106947,164.78,164.75,24.26]
[1749664029251,23.57106947,164.77,164.75,24.26]
[1749664029472,23.57106947,164.78,164.75,24.26]
[1749664029964,23.57106947,164.77,164.75,24.26]
[1749664030158,1.5559,164.84,164.75,24.26]
[1749664030363,23.57106947,164.79,164.75,24.26]
[1749664030779,23.57106947,164.78,164.75,24.26]
[1749664030953,23.57106947,164.8,164.71,18.64964886]
[1749664031145,23.57106947,164.72,164.69,6.2685]
[1749664031351,23.57106947,164.8,164.69,30.5285]
[1749664031748,23.57106947,164.72,164.69,6.2685]
[1749664031949,23.57106947,164.71,164.69,30.5285]
[1749664032253,23.57106947,164.71,164.69,6.2685]
[1749664032471,23.57106947,164.71,164.69,30.5285]
[1749664032676,23.57106947,164.71,164.69,6.2685]
[1749664032854,23.57106947,164.71,164.69,30.5285]
[1749664033057,23.57106947,164.72,164.69,30.5285]
[1749664033957,23.57106947,164.72,164.67,18.64964886]
[1749664034153,23.57106947,164.72,164.69,18.64964886]
[1749664034354,6.06837178,164.79,164.69,18.64964886]
[1749664034688,23.57106947,164.72,164.69,18.64964886]
[1749664035274,6.06837178,164.79,164.69,18.64964886]
[1749664035579,23.57106947,164.72,164.69,18.64964886]
[1749664036366,29.63905499,164.8,164.69,18.64964886]
[1749664036677,23.57106947,164.72,164.69,18.64964886]
[1749664036854,23.57106947,164.8,164.69,42.22071833]
[1749664037065,23.57106947,164.75,164.69,18.64964886]
[1749664037268,23.57106947,164.75,164.71,23.57106947]
[1749664037451,23.57106947,164.74,164.72,24.26]
[1749664040066,23.57106947,164.73,164.66,1.6383]
[1749664040392,23.57106947,164.67,164.6,6.3813]
[1749664040556,23.57106947,164.64,164.6,6.3813]
[1749664041050,23.57106947,164.64,164.61,24.26]
[1749664041256,23.57106947,164.64,164.6,6.3813]
[1749664041457,23.57106947,164.63,164.61,24.26]
[1749664041674,23.57106947,164.63,164.6,18.64964886]
[1749664041870,23.57106947,164.62,164.58,1.6193]
[1749664042072,23.57106947,164.62,164.59,24.26]
[1749664042291,23.57106947,164.6,164.56,6.3813]
[1749664042471,23.57106947,164.59,164.56,6.3813]
[1749664042667,23.57106947,164.61,164.57,18.64964886]
[1749664042868,23.57106947,164.61,164.57,42.90964886]
[1749664043092,23.57106947,164.62,164.57,66.48071833]
[1749664043291,23.57106947,164.61,164.57,24.26]
[1749664044088,23.57106947,164.62,164.57,66.48071833]
[1749664044580,23.57106947,164.66,164.61,23.57106947]
[1749664044785,23.57106947,164.66,164.61,47.83106947]